[Event "Titled Tuesday Blitz July 27 2021"]
[White "Andreikin, Dmitry"]
[Black "Perez Ponsa, Federico"]
[WhiteFideId "4158814"]
[BlackFideId "117927"]
[WhiteElo "2782"]
[BlackElo "2672"]
[Result "1-0"]
[Round "07"]
[TimeControl "180+1"]
[Date "2021.07.27"]
[WhiteClock "0:00:42"]
[BlackClock "0:00:02"]

1. Nf3 {[%clk 0:03:00]}  Nf6 {[%clk 0:03:00]} 2. c4 {[%clk 0:03:00]}  e6 {[%clk 0:03:01]} 3. b3 {[%clk 0:02:58]}  d5 {[%clk 0:03:01]} 4. Bb2 {[%clk 0:02:57]}  c5 {[%clk 0:03:01]} 5. e3 {[%clk 0:02:57]}  Nc6 {[%clk 0:03:00]} 6. cxd5 {[%clk 0:02:55]}  exd5 {[%clk 0:03:00]} 7. Bb5 {[%clk 0:02:56]}  Bd6 {[%clk 0:02:58]} 8. d4 {[%clk 0:02:55]}  cxd4 {[%clk 0:02:49]} 9. Nxd4 {[%clk 0:02:53]}  O-O {[%clk 0:02:50]} 10. Nc3 {[%clk 0:02:46]}  Ne5 {[%clk 0:02:29]} 11. Be2 {[%clk 0:02:41]}  a6 {[%clk 0:02:20]} 12. O-O {[%clk 0:02:41]}  Bd7 {[%clk 0:02:14]} 13. Qd2 {[%clk 0:02:35]}  Rc8 {[%clk 0:02:10]} 14. a3 {[%clk 0:02:28]}  Ne4 {[%clk 0:02:00]} 15. Nxe4 {[%clk 0:02:26]}  dxe4 {[%clk 0:02:01]} 16. Rad1 {[%clk 0:02:22]}  Qg5 {[%clk 0:01:58]} 17. f4 {[%clk 0:02:07]}  Qh4 {[%clk 0:00:48]} 18. g3 {[%clk 0:01:47]}  Qh3 {[%clk 0:00:47]} 19. fxe5 {[%clk 0:01:45]}  Bxe5 {[%clk 0:00:48]} 20. Nf5 {[%clk 0:01:34]}  Bxb2 {[%clk 0:00:06]} 21. Ne7+ {[%clk 0:01:11]}  Kh8 {[%clk 0:00:05]} 22. Qxd7 {[%clk 0:01:06]}  Qxd7 {[%clk 0:00:04]} 23. Rxd7 {[%clk 0:01:07]}  Rc2 {[%clk 0:00:04]} 24. Rxf7 {[%clk 0:01:01]}  Re8 {[%clk 0:00:02]} 25. Bc4 {[%clk 0:00:55]}  h5 {[%clk 0:00:02]} 26. Rxb7 {[%clk 0:00:51]}  Bc1 {[%clk 0:00:02]} 27. Nd5 {[%clk 0:00:47]}  Rd8 {[%clk 0:00:02]} 28. Rxg7 {[%clk 0:00:44]}  Bxe3+ {[%clk 0:00:02]} 29. Nxe3 {[%clk 0:00:42]} 1-0


[Site "https://www.chess.com"]

[Event "Titled Tuesday Blitz July 27 2021"]
[White "Arakhamia-Grant, Ketevan"]
[Black "Karwowski, Kacper"]
[WhiteFideId "13600168"]
[BlackFideId "1126032"]
[WhiteElo "2177"]
[BlackElo "2162"]
[Result "1-0"]
[Round "07"]
[TimeControl "180+1"]
[Date "2021.07.27"]
[WhiteClock "0:00:17"]
[BlackClock "0:00:02"]

1. e4 {[%clk 0:03:00]}  c5 {[%clk 0:02:58]} 2. Nf3 {[%clk 0:03:00]}  d6 {[%clk 0:02:53]} 3. Bb5+ {[%clk 0:03:00]}  Nd7 {[%clk 0:02:52]} 4. O-O {[%clk 0:02:59]}  a6 {[%clk 0:02:51]} 5. Bd3 {[%clk 0:02:58]}  g6 {[%clk 0:02:51]} 6. c3 {[%clk 0:02:59]}  Bg7 {[%clk 0:02:51]} 7. Bc2 {[%clk 0:02:59]}  c4 {[%clk 0:02:47]} 8. b3 {[%clk 0:02:47]}  cxb3 {[%clk 0:02:45]} 9. axb3 {[%clk 0:02:46]}  Ngf6 {[%clk 0:02:45]} 10. d4 {[%clk 0:02:46]}  O-O {[%clk 0:02:45]} 11. c4 {[%clk 0:02:43]}  e5 {[%clk 0:02:07]} 12. Nc3 {[%clk 0:02:38]}  exd4 {[%clk 0:02:03]} 13. Nxd4 {[%clk 0:02:39]}  Ne5 {[%clk 0:02:02]} 14. Bg5 {[%clk 0:02:26]}  Qe8 {[%clk 0:01:55]} 15. Qd2 {[%clk 0:02:20]}  Rb8 {[%clk 0:01:41]} 16. Rfe1 {[%clk 0:02:12]}  Be6 {[%clk 0:01:22]} 17. f4 {[%clk 0:02:10]}  Nc6 {[%clk 0:01:04]} 18. Nxe6 {[%clk 0:01:57]}  fxe6 {[%clk 0:00:51]} 19. Qxd6 {[%clk 0:01:52]}  Rd8 {[%clk 0:00:50]} 20. Qc7 {[%clk 0:01:41]}  Rf7 {[%clk 0:00:40]} 21. Qb6 {[%clk 0:01:38]}  Ng4 {[%clk 0:00:33]} 22. e5 {[%clk 0:01:36]}  Rd2 {[%clk 0:00:28]} 23. Be4 {[%clk 0:01:31]}  h6 {[%clk 0:00:22]} 24. Bxg6 {[%clk 0:00:56]}  hxg5 {[%clk 0:00:21]} 25. Bxf7+ {[%clk 0:00:56]}  Qxf7 {[%clk 0:00:22]} 26. Ne4 {[%clk 0:00:51]}  Qxf4 {[%clk 0:00:08]} 27. Nxd2 {[%clk 0:00:49]}  Bxe5 {[%clk 0:00:08]} 28. Nf3 {[%clk 0:00:33]}  Bxa1 {[%clk 0:00:05]} 29. Rxa1 {[%clk 0:00:30]}  Kf7 {[%clk 0:00:04]} 30. Rf1 {[%clk 0:00:29]}  Ke7 {[%clk 0:00:04]} 31. Qxb7+ {[%clk 0:00:27]}  Kd6 {[%clk 0:00:04]} 32. Rd1+ {[%clk 0:00:25]}  Kc5 {[%clk 0:00:04]} 33. b4+ {[%clk 0:00:23]}  Nxb4 {[%clk 0:00:03]} 34. Qe7+ {[%clk 0:00:20]}  Kc6 {[%clk 0:00:01]} 35. Qxe6+ {[%clk 0:00:17]}  Kc5 {[%clk 0:00:01]} 36. Qe7+ {[%clk 0:00:17]}  Kc6 {[%clk 0:00:02]} 37. Nd4+ {[%clk 0:00:17]} 1-0


[Site "https://www.chess.com"]

[Event "Titled Tuesday Blitz July 27 2021"]
[White "Can, Emre"]
[Black "Koridze, Lile"]
[WhiteFideId "6302181"]
[BlackFideId "13612514"]
[WhiteElo "2503"]
[BlackElo "1978"]
[Result "1-0"]
[Round "07"]
[TimeControl "180+1"]
[Date "2021.07.27"]
[WhiteClock "0:00:19"]
[BlackClock "0:01:10"]

1. Nf3 {[%clk 0:02:58]}  Nf6 {[%clk 0:02:59]} 2. c4 {[%clk 0:02:57]}  e6 {[%clk 0:02:59]} 3. g3 {[%clk 0:02:57]}  d5 {[%clk 0:02:59]} 4. d4 {[%clk 0:02:56]}  Bb4+ {[%clk 0:02:58]} 5. Bd2 {[%clk 0:02:56]}  Be7 {[%clk 0:02:58]} 6. Bg2 {[%clk 0:02:56]}  O-O {[%clk 0:02:59]} 7. O-O {[%clk 0:02:56]}  c6 {[%clk 0:02:59]} 8. Qb3 {[%clk 0:02:50]}  b6 {[%clk 0:02:59]} 9. Nc3 {[%clk 0:02:43]}  Bb7 {[%clk 0:02:57]} 10. Bf4 {[%clk 0:02:39]}  Nbd7 {[%clk 0:02:57]} 11. cxd5 {[%clk 0:02:35]}  cxd5 {[%clk 0:02:50]} 12. Nb5 {[%clk 0:02:34]}  a6 {[%clk 0:02:48]} 13. Nd6 {[%clk 0:02:08]}  Bc6 {[%clk 0:02:44]} 14. Rfc1 {[%clk 0:02:04]}  Nb8 {[%clk 0:02:43]} 15. Ne5 {[%clk 0:01:53]}  Bxd6 {[%clk 0:02:30]} 16. Nxc6 {[%clk 0:01:53]}  Nxc6 {[%clk 0:02:30]} 17. Rxc6 {[%clk 0:01:52]}  Bxf4 {[%clk 0:02:28]} 18. gxf4 {[%clk 0:01:53]}  b5 {[%clk 0:02:28]} 19. Rac1 {[%clk 0:01:51]}  Ne4 {[%clk 0:02:26]} 20. Bxe4 {[%clk 0:01:36]}  dxe4 {[%clk 0:02:25]} 21. e3 {[%clk 0:01:28]}  Qh4 {[%clk 0:02:24]} 22. Qd1 {[%clk 0:01:27]}  Rad8 {[%clk 0:02:16]} 23. Qf1 {[%clk 0:01:19]}  Rd5 {[%clk 0:02:14]} 24. Qg2 {[%clk 0:01:17]}  a5 {[%clk 0:02:11]} 25. R1c5 {[%clk 0:01:02]}  Qh5 {[%clk 0:02:10]} 26. h3 {[%clk 0:00:34]}  h6 {[%clk 0:01:38]} 27. Qg4 {[%clk 0:00:32]}  Qxg4+ {[%clk 0:01:29]} 28. hxg4 {[%clk 0:00:33]}  Rfd8 {[%clk 0:01:30]} 29. Kg2 {[%clk 0:00:28]}  Kf8 {[%clk 0:01:16]} 30. Kg3 {[%clk 0:00:22]}  Ke7 {[%clk 0:01:15]} 31. f5 {[%clk 0:00:21]}  R8d6 {[%clk 0:01:12]} 32. Rc7+ {[%clk 0:00:20]}  Kf6 {[%clk 0:01:11]} 33. fxe6 {[%clk 0:00:20]}  Rxe6 {[%clk 0:01:10]} 34. Rxd5 {[%clk 0:00:19]} 1-0


[Site "https://www.chess.com"]

[Event "Titled Tuesday Blitz July 27 2021"]
[White "Dang, Hoang Son"]
[Black "Haitin, Ilja"]
[WhiteFideId "12402435"]
[BlackFideId "4501764"]
[WhiteElo "2248"]
[BlackElo "2165"]
[Result "0-1"]
[Round "07"]
[TimeControl "180+1"]
[Date "2021.07.27"]
[WhiteClock "0:00:12"]
[BlackClock "0:00:32"]

1. d4 {[%clk 0:03:00]}  e6 {[%clk 0:02:59]} 2. c4 {[%clk 0:03:01]}  f5 {[%clk 0:02:59]} 3. Nf3 {[%clk 0:03:02]}  Nf6 {[%clk 0:02:58]} 4. g3 {[%clk 0:03:03]}  d5 {[%clk 0:02:58]} 5. Bg2 {[%clk 0:03:03]}  c6 {[%clk 0:02:58]} 6. O-O {[%clk 0:03:04]}  Bd6 {[%clk 0:02:58]} 7. b3 {[%clk 0:03:05]}  Qe7 {[%clk 0:02:58]} 8. a4 {[%clk 0:03:05]}  O-O {[%clk 0:02:57]} 9. Ba3 {[%clk 0:03:05]}  b6 {[%clk 0:02:56]} 10. Ne5 {[%clk 0:02:56]}  Bb7 {[%clk 0:02:54]} 11. Qd2 {[%clk 0:02:53]}  Nbd7 {[%clk 0:02:51]} 12. f4 {[%clk 0:02:48]}  Ne4 {[%clk 0:02:48]} 13. Bxe4 {[%clk 0:02:42]}  fxe4 {[%clk 0:02:49]} 14. e3 {[%clk 0:02:42]}  Nxe5 {[%clk 0:02:38]} 15. Bxd6 {[%clk 0:02:31]}  Qxd6 {[%clk 0:02:25]} 16. fxe5 {[%clk 0:02:20]}  Rxf1+ {[%clk 0:02:24]} 17. Kxf1 {[%clk 0:02:21]}  Rf8+ {[%clk 0:02:24]} 18. Kg1 {[%clk 0:02:21]}  Qe7 {[%clk 0:02:15]} 19. Nc3 {[%clk 0:02:22]}  Qb4 {[%clk 0:02:11]} 20. Nxe4 {[%clk 0:02:21]}  Qxb3 {[%clk 0:02:08]} 21. Nd6 {[%clk 0:02:17]}  Ba6 {[%clk 0:02:04]} 22. cxd5 {[%clk 0:02:02]}  cxd5 {[%clk 0:02:02]} 23. Rc1 {[%clk 0:01:47]}  Qxa4 {[%clk 0:01:46]} 24. Kg2 {[%clk 0:01:39]}  Qb3 {[%clk 0:01:34]} 25. Kh3 {[%clk 0:01:38]}  Bf1+ {[%clk 0:01:11]} 26. Kh4 {[%clk 0:01:37]}  a5 {[%clk 0:01:07]} 27. Rc7 {[%clk 0:01:35]}  a4 {[%clk 0:01:02]} 28. Ra7 {[%clk 0:01:13]}  a3 {[%clk 0:00:51]} 29. Qc1 {[%clk 0:01:13]}  Qb2 {[%clk 0:00:47]} 30. Qd1 {[%clk 0:00:13]}  Qxh2+ {[%clk 0:00:45]} 31. Kg5 {[%clk 0:00:12]}  Be2 {[%clk 0:00:32]} 0-1


[Site "https://www.chess.com"]

[Event "Titled Tuesday Blitz July 27 2021"]
[White "Devaev, Alexander"]
[Black "Begmuratov, Khumoyun"]
[WhiteFideId "4169395"]
[BlackFideId "14210207"]
[WhiteElo "2185"]
[BlackElo "1932"]
[Result "1-0"]
[Round "07"]
[TimeControl "180+1"]
[Date "2021.07.27"]
[WhiteClock "0:00:10"]
[BlackClock "0:00:12"]

1. Nf3 {[%clk 0:02:54]}  Nf6 {[%clk 0:02:58]} 2. c4 {[%clk 0:02:55]}  g6 {[%clk 0:02:59]} 3. Nc3 {[%clk 0:02:55]}  Bg7 {[%clk 0:02:55]} 4. e4 {[%clk 0:02:55]}  d6 {[%clk 0:02:52]} 5. d4 {[%clk 0:02:55]}  O-O {[%clk 0:02:51]} 6. h3 {[%clk 0:02:56]}  c6 {[%clk 0:02:44]} 7. Bg5 {[%clk 0:02:55]}  h6 {[%clk 0:02:42]} 8. Be3 {[%clk 0:02:55]}  Nbd7 {[%clk 0:02:41]} 9. Be2 {[%clk 0:02:54]}  Qc7 {[%clk 0:02:41]} 10. Qd2 {[%clk 0:02:53]}  e5 {[%clk 0:02:41]} 11. d5 {[%clk 0:02:52]}  c5 {[%clk 0:02:40]} 12. Bxh6 {[%clk 0:02:52]}  a6 {[%clk 0:02:34]} 13. a3 {[%clk 0:02:48]}  Qa5 {[%clk 0:02:24]} 14. O-O {[%clk 0:02:28]}  b5 {[%clk 0:02:21]} 15. cxb5 {[%clk 0:02:08]}  axb5 {[%clk 0:02:22]} 16. Bxb5 {[%clk 0:02:08]}  Nb6 {[%clk 0:02:09]} 17. a4 {[%clk 0:01:56]}  Ba6 {[%clk 0:02:03]} 18. Ra3 {[%clk 0:01:30]}  Qb4 {[%clk 0:01:47]} 19. Bxg7 {[%clk 0:01:21]}  Kxg7 {[%clk 0:01:46]} 20. Qe2 {[%clk 0:01:08]}  Nc4 {[%clk 0:01:41]} 21. Ra2 {[%clk 0:00:56]}  Bxb5 {[%clk 0:01:37]} 22. axb5 {[%clk 0:00:34]}  Rxa2 {[%clk 0:01:19]} 23. Nxa2 {[%clk 0:00:35]}  Qb3 {[%clk 0:01:20]} 24. Nc1 {[%clk 0:00:21]}  Qxb5 {[%clk 0:01:19]} 25. Nd2 {[%clk 0:00:13]}  Qxb2 {[%clk 0:01:10]} 26. Nxc4 {[%clk 0:00:13]}  Qb5 {[%clk 0:01:05]} 27. Re1 {[%clk 0:00:12]}  Rd8 {[%clk 0:01:03]} 28. f3 {[%clk 0:00:12]}  Qa6 {[%clk 0:01:02]} 29. Qc2 {[%clk 0:00:12]}  Rb8 {[%clk 0:01:02]} 30. Nd3 {[%clk 0:00:13]}  Nd7 {[%clk 0:00:58]} 31. Rc1 {[%clk 0:00:10]}  Nf6 {[%clk 0:00:54]} 32. Kh2 {[%clk 0:00:11]}  Ne8 {[%clk 0:00:54]} 33. Qc3 {[%clk 0:00:09]}  Nc7 {[%clk 0:00:53]} 34. Ra1 {[%clk 0:00:10]}  Qc8 {[%clk 0:00:49]} 35. Na5 {[%clk 0:00:10]}  Nb5 {[%clk 0:00:49]} 36. Qe1 {[%clk 0:00:09]}  Nd4 {[%clk 0:00:47]} 37. Nc6 {[%clk 0:00:10]}  Nxc6 {[%clk 0:00:47]} 38. dxc6 {[%clk 0:00:11]}  Qxc6 {[%clk 0:00:48]} 39. Rc1 {[%clk 0:00:11]}  c4 {[%clk 0:00:48]} 40. Nf2 {[%clk 0:00:09]}  Qc5 {[%clk 0:00:45]} 41. Ng4 {[%clk 0:00:09]}  Qd4 {[%clk 0:00:43]} 42. Ne3 {[%clk 0:00:09]}  d5 {[%clk 0:00:38]} 43. Nxd5 {[%clk 0:00:09]}  Rb2 {[%clk 0:00:37]} 44. Qe3 {[%clk 0:00:08]}  c3 {[%clk 0:00:31]} 45. Qxc3 {[%clk 0:00:07]}  Qf2 {[%clk 0:00:31]} 46. Rg1 {[%clk 0:00:07]}  f6 {[%clk 0:00:21]} 47. Qc7+ {[%clk 0:00:07]}  Kh6 {[%clk 0:00:21]} 48. Nxf6 {[%clk 0:00:07]}  Qh4 {[%clk 0:00:11]} 49. Qh7+ {[%clk 0:00:07]}  Kg5 {[%clk 0:00:11]} 50. Qxh4+ {[%clk 0:00:06]}  Kxh4 {[%clk 0:00:12]} 51. Ng4 {[%clk 0:00:07]}  Kg5 {[%clk 0:00:12]} 52. Nxe5 {[%clk 0:00:07]}  Re2 {[%clk 0:00:12]} 53. Ng4 {[%clk 0:00:08]}  Kf4 {[%clk 0:00:12]} 54. h4 {[%clk 0:00:08]}  g5 {[%clk 0:00:12]} 55. h5 {[%clk 0:00:08]}  Ra2 {[%clk 0:00:12]} 56. h6 {[%clk 0:00:09]}  Ra6 {[%clk 0:00:13]} 57. Rd1 {[%clk 0:00:09]}  Re6 {[%clk 0:00:11]} 58. Kg1 {[%clk 0:00:09]}  Ra6 {[%clk 0:00:11]} 59. Rd2 {[%clk 0:00:09]}  Ra1+ {[%clk 0:00:11]} 60. Kf2 {[%clk 0:00:10]}  Ra6 {[%clk 0:00:12]} 61. g3# {[%clk 0:00:10]} 1-0


[Site "https://www.chess.com"]

[Event "Titled Tuesday Blitz July 27 2021"]
[White "Do Valle Cardoso, Lucas"]
[Black "Walentukiewicz, Michal"]
[WhiteFideId "2163144"]
[BlackFideId "1126903"]
[WhiteElo "2387"]
[BlackElo "1974"]
[Result "1-0"]
[Round "07"]
[TimeControl "180+1"]
[Date "2021.07.27"]
[WhiteClock "0:00:27"]
[BlackClock "0:00:31"]

1. e4 {[%clk 0:03:00]}  g6 {[%clk 0:03:00]} 2. d4 {[%clk 0:03:00]}  Bg7 {[%clk 0:03:01]} 3. Nc3 {[%clk 0:03:01]}  c5 {[%clk 0:03:01]} 4. dxc5 {[%clk 0:03:01]}  Qa5 {[%clk 0:03:01]} 5. Nf3 {[%clk 0:02:56]}  Qxc5 {[%clk 0:03:00]} 6. Be3 {[%clk 0:02:54]}  Qa5 {[%clk 0:03:00]} 7. Be2 {[%clk 0:02:51]}  Nf6 {[%clk 0:03:00]} 8. O-O {[%clk 0:02:50]}  O-O {[%clk 0:03:00]} 9. h3 {[%clk 0:02:49]}  Nc6 {[%clk 0:02:59]} 10. a3 {[%clk 0:02:47]}  d6 {[%clk 0:02:59]} 11. Qd2 {[%clk 0:02:44]}  Be6 {[%clk 0:02:58]} 12. Bh6 {[%clk 0:02:44]}  Rfc8 {[%clk 0:02:58]} 13. Bxg7 {[%clk 0:02:44]}  Kxg7 {[%clk 0:02:58]} 14. Nd4 {[%clk 0:02:43]}  Nxd4 {[%clk 0:02:58]} 15. Qxd4 {[%clk 0:02:44]}  Qc5 {[%clk 0:02:56]} 16. Rad1 {[%clk 0:02:40]}  Qxd4 {[%clk 0:02:55]} 17. Rxd4 {[%clk 0:02:41]}  Rc5 {[%clk 0:02:55]} 18. f4 {[%clk 0:02:40]}  Rac8 {[%clk 0:02:54]} 19. Rfd1 {[%clk 0:02:40]}  Bc4 {[%clk 0:02:53]} 20. Bf3 {[%clk 0:02:40]}  b5 {[%clk 0:02:48]} 21. Kf2 {[%clk 0:02:28]}  a5 {[%clk 0:02:48]} 22. R1d2 {[%clk 0:02:18]}  b4 {[%clk 0:02:47]} 23. axb4 {[%clk 0:02:18]}  axb4 {[%clk 0:02:48]} 24. Na4 {[%clk 0:02:18]}  Rb5 {[%clk 0:02:31]} 25. e5 {[%clk 0:02:10]}  Ne8 {[%clk 0:02:22]} 26. b3 {[%clk 0:02:06]}  Be6 {[%clk 0:02:21]} 27. Be2 {[%clk 0:02:06]}  Rbb8 {[%clk 0:02:08]} 28. exd6 {[%clk 0:02:02]}  Nxd6 {[%clk 0:02:06]} 29. Bd3 {[%clk 0:02:02]}  Nf5 {[%clk 0:02:02]} 30. Re4 {[%clk 0:01:54]}  h5 {[%clk 0:01:54]} 31. Re5 {[%clk 0:01:35]}  Bd7 {[%clk 0:01:28]} 32. Nc5 {[%clk 0:01:33]}  Bc6 {[%clk 0:01:25]} 33. Bxf5 {[%clk 0:01:33]}  gxf5 {[%clk 0:01:25]} 34. Rxf5 {[%clk 0:01:33]}  e6 {[%clk 0:01:19]} 35. Rxh5 {[%clk 0:01:31]}  Kf6 {[%clk 0:01:19]} 36. Nd3 {[%clk 0:01:27]}  Bd5 {[%clk 0:01:17]} 37. g4 {[%clk 0:01:22]}  Rc3 {[%clk 0:01:16]} 38. Re5 {[%clk 0:01:03]}  Rbc8 {[%clk 0:01:14]} 39. Nxb4 {[%clk 0:00:56]}  Rf3+ {[%clk 0:01:14]} 40. Ke2 {[%clk 0:00:51]}  Rxf4 {[%clk 0:01:07]} 41. Nxd5+ {[%clk 0:00:33]}  Kxe5 {[%clk 0:01:08]} 42. Nxf4 {[%clk 0:00:33]}  Kxf4 {[%clk 0:01:08]} 43. c4 {[%clk 0:00:30]}  e5 {[%clk 0:01:07]} 44. Rc2 {[%clk 0:00:28]}  e4 {[%clk 0:01:07]} 45. c5 {[%clk 0:00:28]}  Ke5 {[%clk 0:00:59]} 46. b4 {[%clk 0:00:28]}  Kd4 {[%clk 0:00:58]} 47. c6 {[%clk 0:00:27]}  Rh8 {[%clk 0:00:33]} 48. c7 {[%clk 0:00:27]}  Rxh3 {[%clk 0:00:30]} 49. c8=Q {[%clk 0:00:27]}  Rh2+ {[%clk 0:00:31]} 50. Kf1 {[%clk 0:00:27]} 1-0


[Site "https://www.chess.com"]

[Event "Titled Tuesday Blitz July 27 2021"]
[White "Eternauta2400"]
[Black "Weetik, Vjacheslav"]
[BlackFideId "4153472"]
[WhiteElo "2528"]
[BlackElo "2469"]
[Result "0-1"]
[Round "07"]
[TimeControl "180+1"]
[Date "2021.07.27"]
[WhiteClock "0:00:08"]
[BlackClock "0:00:08"]

1. Nf3 {[%clk 0:03:00]}  d5 {[%clk 0:02:59]} 2. c4 {[%clk 0:03:00]}  e6 {[%clk 0:02:59]} 3. g3 {[%clk 0:02:59]}  f5 {[%clk 0:02:53]} 4. Bg2 {[%clk 0:02:48]}  Nf6 {[%clk 0:02:54]} 5. O-O {[%clk 0:02:46]}  Be7 {[%clk 0:02:49]} 6. b3 {[%clk 0:02:46]}  O-O {[%clk 0:02:48]} 7. Bb2 {[%clk 0:02:43]}  c6 {[%clk 0:02:42]} 8. d3 {[%clk 0:02:43]}  a5 {[%clk 0:02:31]} 9. Nbd2 {[%clk 0:02:35]}  Na6 {[%clk 0:02:29]} 10. Ne5 {[%clk 0:02:31]}  a4 {[%clk 0:02:28]} 11. Ndf3 {[%clk 0:02:22]}  a3 {[%clk 0:02:20]} 12. Bc1 {[%clk 0:02:21]}  Nb4 {[%clk 0:02:17]} 13. Bd2 {[%clk 0:02:18]}  d4 {[%clk 0:01:31]} 14. h4 {[%clk 0:02:09]}  Qd6 {[%clk 0:01:19]} 15. Bxb4 {[%clk 0:02:03]}  Qxb4 {[%clk 0:01:18]} 16. Nxd4 {[%clk 0:02:03]}  Qd6 {[%clk 0:01:13]} 17. Ndf3 {[%clk 0:02:03]}  Ng4 {[%clk 0:01:12]} 18. d4 {[%clk 0:02:00]}  Bf6 {[%clk 0:01:08]} 19. c5 {[%clk 0:01:59]}  Qc7 {[%clk 0:01:01]} 20. Nc4 {[%clk 0:01:58]}  Rd8 {[%clk 0:00:58]} 21. e3 {[%clk 0:01:52]}  e5 {[%clk 0:00:52]} 22. Qe1 {[%clk 0:01:47]}  e4 {[%clk 0:00:50]} 23. Nfd2 {[%clk 0:01:44]}  Bxh4 {[%clk 0:00:47]} 24. Bh3 {[%clk 0:01:34]}  Be7 {[%clk 0:00:39]} 25. Nb6 {[%clk 0:01:22]}  Rb8 {[%clk 0:00:38]} 26. Bxg4 {[%clk 0:01:20]}  fxg4 {[%clk 0:00:38]} 27. Nxc8 {[%clk 0:01:10]}  Qxc8 {[%clk 0:00:38]} 28. b4 {[%clk 0:01:07]}  Qf5 {[%clk 0:00:37]} 29. Kg2 {[%clk 0:00:59]}  Re8 {[%clk 0:00:32]} 30. Rb1 {[%clk 0:00:55]}  h5 {[%clk 0:00:32]} 31. Qe2 {[%clk 0:00:46]}  h4 {[%clk 0:00:19]} 32. Nc4 {[%clk 0:00:41]}  h3+ {[%clk 0:00:18]} 33. Kh2 {[%clk 0:00:40]}  Bf6 {[%clk 0:00:11]} 34. Nd6 {[%clk 0:00:36]}  Qg6 {[%clk 0:00:10]} 35. Nxe8 {[%clk 0:00:31]}  Rxe8 {[%clk 0:00:11]} 36. b5 {[%clk 0:00:31]}  Rf8 {[%clk 0:00:11]} 37. bxc6 {[%clk 0:00:27]}  bxc6 {[%clk 0:00:12]} 38. Rb3 {[%clk 0:00:28]}  Bd8 {[%clk 0:00:11]} 39. Rxa3 {[%clk 0:00:27]}  Bc7 {[%clk 0:00:11]} 40. Ra7 {[%clk 0:00:25]}  Rf7 {[%clk 0:00:12]} 41. Rxc7 {[%clk 0:00:24]}  Rxc7 {[%clk 0:00:12]} 42. Qc4+ {[%clk 0:00:24]}  Kh7 {[%clk 0:00:12]} 43. d5 {[%clk 0:00:23]}  cxd5 {[%clk 0:00:10]} 44. Qxd5 {[%clk 0:00:23]}  Rf7 {[%clk 0:00:11]} 45. c6 {[%clk 0:00:22]}  Rc7 {[%clk 0:00:10]} 46. Rc1 {[%clk 0:00:21]}  Kh6 {[%clk 0:00:08]} 47. Rc4 {[%clk 0:00:20]}  Qf6 {[%clk 0:00:08]} 48. Rc2 {[%clk 0:00:10]}  Qf3 {[%clk 0:00:08]} 49. Qd6+ {[%clk 0:00:08]}  Kh7 {[%clk 0:00:08]} 0-1


[Site "https://www.chess.com"]

[Event "Titled Tuesday Blitz July 27 2021"]
[White "Gabrielian, Artur"]
[Black "Martinez Alcantara, Jose Eduardo"]
[WhiteFideId "4131002"]
[BlackFideId "3805662"]
[WhiteElo "2523"]
[BlackElo "2690"]
[Result "0-1"]
[Round "07"]
[TimeControl "180+1"]
[Date "2021.07.27"]
[WhiteClock "0:00:01"]
[BlackClock "0:00:04"]

1. e4 {[%clk 0:03:00]}  Nc6 {[%clk 0:03:00]} 2. Nf3 {[%clk 0:03:00]}  d6 {[%clk 0:03:00]} 3. Bc4 {[%clk 0:02:57]}  Nf6 {[%clk 0:02:58]} 4. d3 {[%clk 0:02:56]}  e6 {[%clk 0:02:51]} 5. O-O {[%clk 0:02:47]}  Be7 {[%clk 0:02:51]} 6. a4 {[%clk 0:02:46]}  O-O {[%clk 0:02:51]} 7. Re1 {[%clk 0:02:46]}  d5 {[%clk 0:02:50]} 8. exd5 {[%clk 0:02:45]}  exd5 {[%clk 0:02:50]} 9. Bb5 {[%clk 0:02:41]}  Nb8 {[%clk 0:02:39]} 10. d4 {[%clk 0:02:41]}  Bg4 {[%clk 0:02:25]} 11. h3 {[%clk 0:02:40]}  Bh5 {[%clk 0:02:24]} 12. Bf4 {[%clk 0:02:40]}  c6 {[%clk 0:02:24]} 13. Bd3 {[%clk 0:02:39]}  Nbd7 {[%clk 0:02:24]} 14. Nbd2 {[%clk 0:02:37]}  Re8 {[%clk 0:02:20]} 15. c3 {[%clk 0:02:37]}  Nf8 {[%clk 0:02:12]} 16. Qb3 {[%clk 0:02:33]}  Bg6 {[%clk 0:01:59]} 17. Bxg6 {[%clk 0:02:18]}  Nxg6 {[%clk 0:02:00]} 18. Bh2 {[%clk 0:02:16]}  Qc8 {[%clk 0:01:59]} 19. Ne5 {[%clk 0:02:15]}  Nxe5 {[%clk 0:01:46]} 20. Rxe5 {[%clk 0:02:07]}  Bd6 {[%clk 0:01:42]} 21. Rxe8+ {[%clk 0:02:06]}  Nxe8 {[%clk 0:01:43]} 22. Re1 {[%clk 0:02:00]}  Bxh2+ {[%clk 0:01:43]} 23. Kxh2 {[%clk 0:02:00]}  Nd6 {[%clk 0:01:43]} 24. Qc2 {[%clk 0:01:57]}  Qc7 {[%clk 0:01:42]} 25. Kg1 {[%clk 0:01:58]}  f6 {[%clk 0:01:40]} 26. c4 {[%clk 0:01:46]}  Qf7 {[%clk 0:01:17]} 27. c5 {[%clk 0:01:40]}  Ne8 {[%clk 0:01:17]} 28. Qb3 {[%clk 0:01:35]}  Rb8 {[%clk 0:01:13]} 29. Qg3 {[%clk 0:01:31]}  Rd8 {[%clk 0:00:58]} 30. Nf3 {[%clk 0:01:29]}  g6 {[%clk 0:00:55]} 31. Nh4 {[%clk 0:01:25]}  Ng7 {[%clk 0:00:54]} 32. b4 {[%clk 0:01:23]}  a6 {[%clk 0:00:52]} 33. Nf3 {[%clk 0:01:15]}  Qd7 {[%clk 0:00:44]} 34. Qf4 {[%clk 0:01:12]}  Rf8 {[%clk 0:00:40]} 35. Nh2 {[%clk 0:01:04]}  g5 {[%clk 0:00:36]} 36. Qf3 {[%clk 0:01:01]}  h5 {[%clk 0:00:36]} 37. Nf1 {[%clk 0:01:00]}  Qf5 {[%clk 0:00:33]} 38. Qe2 {[%clk 0:00:59]}  Re8 {[%clk 0:00:32]} 39. Qd2 {[%clk 0:00:59]}  Rxe1 {[%clk 0:00:32]} 40. Qxe1 {[%clk 0:00:59]}  Qe6 {[%clk 0:00:26]} 41. Qd1 {[%clk 0:00:56]}  h4 {[%clk 0:00:24]} 42. Ne3 {[%clk 0:00:54]}  Qe4 {[%clk 0:00:24]} 43. b5 {[%clk 0:00:43]}  axb5 {[%clk 0:00:22]} 44. axb5 {[%clk 0:00:43]}  Ne6 {[%clk 0:00:21]} 45. bxc6 {[%clk 0:00:42]}  bxc6 {[%clk 0:00:22]} 46. Qh5 {[%clk 0:00:31]}  Nf4 {[%clk 0:00:15]} 47. Qg4 {[%clk 0:00:22]}  Qe6 {[%clk 0:00:06]} 48. Qxe6+ {[%clk 0:00:17]}  Nxe6 {[%clk 0:00:06]} 49. Nf5 {[%clk 0:00:17]}  Kf7 {[%clk 0:00:06]} 50. g4 {[%clk 0:00:17]}  Nf4 {[%clk 0:00:05]} 51. Kh2 {[%clk 0:00:15]}  Ke6 {[%clk 0:00:05]} 52. Ne3 {[%clk 0:00:13]}  Ne2 {[%clk 0:00:06]} 53. Nf5 {[%clk 0:00:13]}  Kd7 {[%clk 0:00:06]} 54. Kg2 {[%clk 0:00:13]}  Nf4+ {[%clk 0:00:06]} 55. Kh2 {[%clk 0:00:13]}  Kc7 {[%clk 0:00:07]} 56. Ne7 {[%clk 0:00:11]}  Ne6 {[%clk 0:00:05]} 57. Nf5 {[%clk 0:00:11]}  Kb7 {[%clk 0:00:05]} 58. Kg2 {[%clk 0:00:11]}  Ka6 {[%clk 0:00:05]} 59. Kf3 {[%clk 0:00:09]}  Kb5 {[%clk 0:00:05]} 60. Nd6+ {[%clk 0:00:09]}  Kb4 {[%clk 0:00:05]} 61. Ne8 {[%clk 0:00:09]}  Nxd4+ {[%clk 0:00:05]} 62. Ke3 {[%clk 0:00:10]}  Kxc5 {[%clk 0:00:05]} 63. Nxf6 {[%clk 0:00:10]}  Ne6 {[%clk 0:00:05]} 64. Kd3 {[%clk 0:00:02]}  Nf4+ {[%clk 0:00:04]} 65. Ke3 {[%clk 0:00:02]}  Nxh3 {[%clk 0:00:04]} 66. Nd7+ {[%clk 0:00:02]}  Kd6 {[%clk 0:00:05]} 67. Nf6 {[%clk 0:00:02]}  Ke6 {[%clk 0:00:05]} 68. Ne8 {[%clk 0:00:01]}  Nf4 {[%clk 0:00:03]} 69. Ng7+ {[%clk 0:00:01]}  Ke5 {[%clk 0:00:04]} 0-1


[Site "https://www.chess.com"]